bitfinex/quotes_SOLUSD_20260226
["timestamp","ask_amount","ask_price","bid_price","bid_amount"]
[1772133093714,1.73031394,86.147,86.121,1.87189553]
[1772133094029,1.73031394,86.147,86.121,13.48338352]
[1772133094927,1.73031394,86.145,86.11,8.88972949]
[1772133095730,1.73031394,86.145,86.111,1.90790905]
[1772133096122,8.88972949,86.14,86.111,1.90790905]
[1772133096432,8.88972949,86.14,86.085,40.79965125]
[1772133096433,1.77037917,86.129,86.09,8.88972949]
[1772133096610,1.77037917,86.129,86.072,62.5]
[1772133096611,8.88972949,86.11,86.071,1.90790905]
[1772133096810,133.49430037,86.146,86.054,40.67213609]
[1772133096811,1.77037917,86.099,86.061,1.90790905]
[1772133097011,1.77037917,86.097,86.062,13.52743915]
[1772133097339,1.77037917,86.089,86.05,8.88972949]
[1772133097632,1.77037917,86.089,86.06,8.88972949]
[1772133097818,1.77037917,86.089,86.052,1.90790905]
[1772133098717,1.77037917,86.089,86.061,1.90790905]
[1772133098920,11.61407495,86.103,86.071,1.90790905]
[1772133099318,13.38445412,86.103,86.071,1.90790905]
[1772133099830,11.61407495,86.103,86.071,1.90790905]
[1772133100222,13.52418816,86.103,86.071,1.90790905]
[1772133100422,1.91011321,86.102,86.071,1.90790905]
[1772133100734,1.91011321,86.099,86.063,1.7861019]
[1772133100947,1.91011321,86.097,86.057,1.7861019]
[1772133101234,1.91011321,86.097,86.06,10.67583139]
[1772133101438,1.91011321,86.097,86.06,1.7861019]
[1772133101738,1.91011321,86.089,86.06,1.7861019]
[1772133102037,1.91011321,86.097,86.061,1.7861019]
[1772133102341,1.91011321,86.105,86.071,1.7861019]
[1772133103257,20.50581074,86.11,86.073,1.7861019]
[1772133103554,1.91011321,86.109,86.073,1.7861019]
[1772133104640,1.91011321,86.109,86.072,11.61818012]
[1772133104939,1.91011321,86.089,86.062,11.61943268]
[1772133105232,1.91011321,86.099,86.064,11.61926008]
[1772133105435,11.61467165,86.098,86.065,1.7861019]
[1772133105641,1.91011321,86.099,86.065,1.7861019]
[1772133106344,1.91011321,86.098,86.065,1.7861019]
[1772133109352,1.91011321,86.098,86.066,11.61899007]
[1772133109531,1.91011321,86.098,86.066,13.40509197]
[1772133110151,1.91011321,86.096,86.066,13.40509197]
[1772133110642,1.91011321,86.096,86.067,1.7861019]
[1772133110843,1.91011321,86.107,86.067,1.7861019]
[1772133111047,3.32073717,86.12,86.066,11.61899007]
[1772133111048,5.23085038,86.13,86.097,1.7861019]
[1772133111226,1.91011321,86.127,86.097,1.7861019]
[1772133111425,1.91011321,86.139,86.101,1.7861019]
[1772133112246,1.91011321,86.119,86.08,8.88824874]
[1772133112429,1.91011321,86.119,86.08,10.67435064]
[1772133112630,1.91011321,86.119,86.081,1.7861019]
[1772133113641,1.91011321,86.119,86.083,1.7861019]
[1772133113948,1.91011321,86.117,86.083,1.7861019]
[1772133115340,1.91011321,86.117,86.083,1.20538989]
[1772133116254,1.91011321,86.115,86.084,11.61656056]
[1772133117456,1.91011321,86.109,86.07,8.88824874]
[1772133117756,1.91011321,86.109,86.07,10.67435064]
[1772133117949,1.91011321,86.109,86.071,1.7861019]
[1772133118146,1.91011321,86.099,86.071,1.7861019]
[1772133118452,1.91011321,86.099,86.074,11.61791017]
[1772133119356,1.91011321,86.099,86.075,1.7861019]
[1772133119557,1.91011321,86.105,86.075,1.7861019]
[1772133120445,1.91011321,86.105,86.08,8.88824874]
[1772133120660,35.55299496,86.34,86.082,1.7861019]
[1772133120836,35.55299496,86.34,86.076,11.61764022]
[1772133120837,11.60114275,86.199,86.16,8.88824874]
[1772133121041,11.60114275,86.199,86.1,8.88824874]
[1772133121042,8.88824874,86.17,86.128,1.7861019]
[1772133121364,8.88824874,86.18,86.131,1.7861019]
[1772133121541,11.60240866,86.189,86.131,1.7861019]
[1772133121738,8.88824874,86.18,86.133,1.7861019]
[1772133121961,8.88824874,86.18,86.141,1.7861019]
[1772133122134,8.88824874,86.17,86.141,1.7861019]
[1772133122761,8.88824874,86.16,86.124,1.7861019]
[1772133122963,10.79836195,86.16,86.124,1.7861019]
[1772133123163,11.60420733,86.176,86.141,1.7861019]
[1772133123335,1.91011321,86.179,86.141,1.7861019]
[1772133123532,8.88824874,86.18,86.141,1.7861019]
[1772133123533,1.91011321,86.177,86.141,1.7861019]
[1772133123965,1.91011321,86.159,86.122,1.7861019]
[1772133124179,1.91011321,86.139,86.116,11.61224028]
[1772133124462,1.91011321,86.139,86.103,1.7861019]
[1772133124667,1.91011321,86.139,86.105,1.7861019]
[1772133124879,8.88824874,86.13,86.105,1.7861019]
[1772133125180,8.88824874,86.12,86.097,1.7861019]
[1772133125878,1.91011321,86.129,86.097,1.7861019]
[1772133126050,8.88824874,86.14,86.101,1.7861019]
[1772133126862,8.88824874,86.14,86.102,11.61413207]
[1772133127182,8.88824874,86.14,86.103,1.7861019]
[1772133127474,1.91011321,86.129,86.103,1.7861019]
[1772133127777,1.91011321,86.137,86.103,1.7861019]
[1772133128154,8.88824874,86.14,86.103,1.7861019]
[1772133128581,1.91011321,86.146,86.103,1.7861019]
[1772133129450,1.91011321,86.146,86.111,1.7861019]
[1772133129777,8.88824874,86.14,86.111,1.7861019]
[1772133130370,1.82641243,86.139,86.111,1.7861019]
[1772133130573,1.82641243,86.119,86.081,1.86297164]
[1772133130752,8.88824874,86.11,86.081,1.86297164]
[1772133130955,8.88824874,86.1,86.081,1.86297164]
[1772133131286,1.82641243,86.099,86.064,1.86297164]
[1772133131572,1.82641243,86.099,86.066,1.86297164]
[1772133133871,10.72098469,86.09,86.067,11.61885507]
[1772133134250,8.89457226,86.09,86.067,11.61885507]
[1772133134454,1.82641243,86.098,86.067,11.61885507]
[1772133135171,1.82641243,86.098,86.068,1.86297164]
[1772133135760,1.82641243,86.098,86.069,11.61858508]
[1772133136470,1.82641243,86.082,86.064,11.619131]
[1772133137475,1.82641243,86.082,86.05,8.89457226]
[1772133137476,1.82641243,86.082,86.059,42.5327447]
[1772133137660,10.72098469,86.09,86.06,1.86297164]
[1772133138766,10.72098469,86.09,86.059,40.66977306]
[1772133138767,10.72098469,86.09,86.062,1.86297164]
[1772133139478,1.82641243,86.089,86.063,11.61939509]
[1772133139665,1.82641243,86.089,86.064,1.86297164]
[1772133140065,1.82641243,86.089,86.063,40.66788282]
[1772133140066,1.82641243,86.135,86.071,1.86297164]
[1772133140271,8.89457226,86.11,86.074,1.86297164]
[1772133140882,1.82641243,86.109,86.074,1.86297164]
[1772133141272,8.89457226,86.1,86.074,1.86297164]
[1772133141669,8.89457226,86.1,86.076,1.86297164]
[1772133143586,8.89457226,86.1,86.077,11.61750525]
[1772133144083,1.82641243,86.14,86.081,1.86297164]
[1772133144284,1.82641243,86.119,86.081,1.86297164]
[1772133145177,1.82641243,86.109,86.081,1.86297164]
[1772133145501,1.82641243,86.109,86.081,1.34027613]
[1772133145672,1.82641243,86.109,86.082,11.61683046]
[1772133146589,1.82641243,86.107,86.077,74.11745261]
[1772133147887,1.82641243,86.107,86.077,75.98042425]
[1772133148188,1.82641243,86.107,86.078,1.86297164]
[1772133149293,1.82641243,86.107,86.055,58.1020471]
[1772133149294,1.82641243,86.118,86.081,1.86297164]
[1772133149502,1.82641243,86.117,86.081,1.86297164]
[1772133149798,1.82641243,86.099,86.066,30.91029588]
[1772133149971,1.82641243,86.099,86.067,74.11885507]
[1772133150278,1.82641243,86.089,86.067,11.61885507]
[1772133151076,8.89457226,86.08,86.059,62.5]
[1772133151388,1.82641243,86.079,86.05,1.86297164]
[1772133151990,1.82641243,86.079,86.045,11.62181171]
[1772133152170,1.82641243,86.069,86.045,11.62181171]
[1772133156578,1.82641243,86.069,86.046,1.90702841]
[1772133158195,1.82641243,86.069,86.047,11.62155566]
[1772133158393,1.90450143,86.085,86.051,1.90702841]
[1772133159810,1.97622897,86.079,86.051,1.90702841]
[1772133160510,1.97622897,86.086,86.032,62.5]
[1772133160711,1.97622897,86.066,86.034,2.03782215]
[1772133161199,1.97622897,86.049,86.03,0.2]
[1772133161400,1.97622897,86.049,86.02,11.62520344]
[1772133161697,1.97622897,86.049,86.011,11.62641987]
[1772133161903,1.97622897,86.049,85.995,62.5]
[1772133162097,1.97622897,86.049,86.0,3.32309309]
[1772133162609,1.97622897,86.049,85.995,62.5]
[1772133162779,1.97622897,86.047,86.01,3.32309309]
[1772133162985,11.6214206,86.048,86.0,3.32309309]
[1772133162986,1.97622897,86.039,86.0,3.32309309]
[1772133163190,11.6214206,86.048,85.996,11.62844783]
[1772133163191,3.32309309,86.03,85.996,11.62844783]
[1772133163502,1.97622897,86.019,85.99,3.52309309]
[1772133163881,1.97622897,86.019,85.99,0.2]
[1772133164686,3.32309309,86.04,85.981,11.6304765]
[1772133164687,1.97622897,86.008,85.981,11.6304765]
[1772133165607,1.97622897,86.008,85.981,13.65099353]
[1772133166877,1.97622897,86.016,85.991,2.02437687]
[1772133167080,1.97622897,86.027,86.0,10.93700755]
[1772133167302,1.97622897,86.027,86.0,8.91263068]
[1772133168186,1.97622897,86.027,85.99,8.91263068]
[1772133168707,2.08579931,86.026,85.991,11.62912397]
[1772133170801,11.62452775,86.025,85.991,11.62912397]
[1772133171106,2.08579931,86.024,85.991,11.62912397]
[1772133172498,2.08579931,86.007,85.98,0.2]
[1772133173785,2.08579931,86.007,85.981,11.6304765]
[1772133174505,2.08579931,86.018,85.99,8.91263068]
[1772133177506,2.08579931,86.018,85.991,11.62912397]
[1772133177907,2.08579931,86.017,85.991,11.62912397]
[1772133183812,2.08579931,86.015,85.987,11.62961884]
[1772133184109,2.08579931,86.009,85.98,0.2]
[1772133184792,2.08579931,86.007,85.981,11.6304765]
[1772133185490,29.06133175,86.025,85.99,3.32748682]
[1772133185491,2.08579931,86.014,85.99,3.32748682]
[1772133185696,2.08579931,86.021,86.0,3.32748682]
[1772133185904,2.08579931,86.021,85.981,40.70666775]
[1772133185905,2.08579931,86.021,85.99,3.32748682]
[1772133187314,2.08579931,86.039,85.993,0.0969616]
[1772133187499,2.08579931,86.019,85.98,3.52748682]
[1772133188723,2.08579931,86.019,85.981,40.70659338]
[1772133190310,2.10287931,86.009,85.98,0.2]
[1772133190515,2.10287931,86.009,85.981,11.6304765]
[1772133192204,2.10287931,86.019,85.981,40.70666775]
[1772133192406,2.10287931,86.019,85.982,0.12191893]
[1772133192611,2.10287931,86.019,85.991,0.12591049]
[1772133192814,2.10287931,86.028,86.01,3.32748682]
[1772133193119,2.10287931,86.043,86.01,3.32748682]
[1772133194326,2.10287931,86.039,86.002,11.62763656]
[1772133195310,11.61926008,86.064,86.02,3.32748682]
[1772133195509,2.10287931,86.059,86.021,0.13370944]
[1772133195808,2.10287931,86.059,86.014,0.13755425]
[1772133196039,2.10287931,86.049,86.01,3.32748682]
[1772133196217,2.10287931,86.047,86.011,11.62641987]
[1772133197725,2.10287931,86.047,86.011,40.69246956]
[1772133198319,2.10287931,86.045,86.011,11.62641987]
[1772133198535,2.10287931,86.039,86.007,11.62690502]
[1772133202135,2.10287931,86.037,86.001,40.69687469]
[1772133203220,2.10287931,86.035,86.001,99.87329692]
[1772133204225,2.10287931,86.029,86.001,59.17642223]
[1772133204410,2.10287931,86.009,85.984,11.63007071]
[1772133205733,2.10287931,86.016,85.99,3.32748682]
[1772133206025,2.10287931,86.028,85.991,0.17367848]
[1772133207022,2.10287931,86.019,85.984,11.80710498]
[1772133207216,2.10287931,86.019,85.984,11.63007071]
[1772133208230,2.10287931,86.017,85.98,15.15806968]
[1772133208631,2.10287931,86.017,85.98,15.34175244]
[1772133208825,2.10287931,86.017,85.98,15.15806968]
[1772133209144,2.10287931,86.017,85.98,15.34175244]
[1772133209433,2.10287931,86.017,85.98,44.41828186]
[1772133209626,2.10287931,86.017,85.981,0.18691278]
[1772133210714,11.62574404,86.016,85.982,11.63034123]
[1772133210915,2.10287931,86.015,85.982,11.63034123]
[1772133211438,2.10287931,86.015,85.983,0.19180867]
[1772133211847,2.10287931,86.015,85.982,40.70619431]
[1772133211848,2.10287931,86.028,85.991,0.19180867]
[1772133212141,2.10287931,86.026,85.991,0.19180867]
[1772133212931,2.10287931,86.026,85.992,40.70146059]
[1772133213135,3.32748682,86.03,85.993,0.19344318]
[1772133213136,2.10287931,86.024,85.993,0.19344318]
[1772133213640,2.10287931,86.024,86.001,0.19502875]
[1772133214145,2.10287931,86.03,86.001,0.19502875]
[1772133216626,2.1452198,86.029,86.002,11.62763656]
[1772133217732,2.1452198,86.029,85.994,0.20122676]
[1772133217932,2.1452198,86.029,85.994,11.82986338]
[1772133218853,2.1452198,86.027,86.001,11.62777177]
[1772133220046,2.1452198,86.027,85.997,11.62822736]
[1772133222147,11.62439262,86.026,85.991,40.91200156]
[1772133222447,2.08579931,86.025,85.991,40.91200156]
[1772133222839,2.08579931,86.025,85.991,40.70193391]
[1772133223037,2.08579931,86.019,85.991,40.70193391]
[1772133224652,2.08579931,86.019,85.992,0.21423348]
[1772133224956,2.08579931,86.029,85.992,0.21423348]
[1772133225956,2.08579931,86.029,85.986,59.17642223]
[1772133226173,2.08579931,85.999,85.98,11.83054247]
[1772133226453,98.80280716,86.03,85.981,2.11169914]
[1772133226454,3.3260002,86.02,85.981,2.11169914]
[1772133227154,3.3260002,86.01,85.982,11.63034123]
[1772133227452,3.3260002,86.03,85.991,2.11169914]
[1772133227651,3.3260002,86.02,85.983,2.11169914]
[1772133228557,3.69383402,86.036,85.98,3.5260002]
[1772133228558,2.02809411,86.009,85.981,2.11169914]
[1772133228755,2.02809411,86.009,85.98,0.2]
[1772133229441,11.62682541,86.008,85.981,11.6304765]
[1772133229642,2.02809411,86.007,85.982,2.11169914]
[1772133231953,2.02809411,86.007,85.984,2.11169914]
[1772133232859,2.02809411,86.005,85.984,2.11169914]
[1772133233158,2.02809411,86.005,85.983,11.63020597]
[1772133233574,3.69383402,86.036,85.983,11.63020597]
[1772133233575,2.02809411,86.011,85.984,2.11169914]
[1772133233862,2.02809411,86.018,85.984,2.11169914]
[1772133234267,2.02809411,86.018,85.991,2.11169914]
[1772133234765,2.02809411,86.025,85.991,2.11169914]
[1772133235064,2.02809411,86.032,86.001,2.11169914]
[1772133235244,2.02809411,86.029,85.993,2.11169914]
[1772133235445,2.02809411,86.019,85.986,2.11169914]
[1772133235746,2.02809411,86.029,86.001,2.11169914]
[1772133237557,2.02809411,86.029,86.002,11.62763656]
[1772133237760,2.02809411,86.029,86.002,13.7393357]
[1772133238338,2.02809411,86.027,85.98,0.2]
[1772133238544,2.02809411,86.027,85.991,2.11169914]
[1772133238942,2.02809411,86.027,85.995,2.11169914]
[1772133240252,2.02809411,86.027,85.998,2.11169914]
[1772133240561,2.02809411,86.027,85.999,61.28812137]
[1772133240858,2.02809411,86.027,85.997,11.62831261]
[1772133241177,2.02809411,86.025,85.993,2.11169914]
[1772133241548,11.62439262,86.026,85.991,59.17642223]
[1772133241549,2.02809411,86.019,85.991,59.17642223]
[1772133241960,2.02809411,86.019,85.992,11.62898874]
[1772133242658,2.02809411,86.017,85.98,15.15656358]
[1772133242960,2.02809411,86.009,85.982,2.11169914]
[1772133244663,2.02809411,86.017,85.991,2.11169914]
[1772133246069,2.02809411,86.016,85.992,11.62898874]
[1772133248460,2.02809411,86.015,85.992,11.62898874]
[1772133249268,2.02809411,86.015,85.991,59.17642223]
[1772133249573,2.02809411,86.009,85.98,0.2]
[1772133249876,2.02809411,86.009,85.983,13.82410402]
[1772133250172,2.02809411,86.009,85.984,2.19389805]
[1772133252369,2.02809411,86.009,85.985,11.62993545]
[1772133252574,3.3260002,86.04,85.97,0.2]
[1772133252575,2.04865342,85.999,85.971,74.13179195]
[1772133252872,2.04865342,85.999,85.971,11.63179195]
[1772133253073,2.04865342,85.999,85.972,2.19389805]
[1772133253369,11.62605098,86.014,85.981,2.19389805]
[1772133254574,11.62533858,86.019,85.983,2.19389805]
[1772133255271,2.04865342,86.018,85.983,2.19389805]
[1772133257769,2.04865342,86.016,85.986,2.19389805]
[1772133259465,2.04865342,86.016,85.991,2.19389805]
[1772133259974,2.04865342,86.016,85.993,2.19389805]
[1772133260479,3.3260002,86.04,86.001,2.19389805]
[1772133260480,11.62355202,86.033,86.001,2.19389805]
[1772133260774,58.09973201,86.059,86.011,2.19389805]
[1772133260775,11.62155566,86.047,86.011,2.19389805]
[1772133261560,11.62155566,86.047,86.021,2.19389805]
[1772133261863,3.3260002,86.07,86.031,2.19389805]
[1772133262070,11.61858508,86.069,86.035,2.19389805]
[1772133262279,2.04865342,86.071,86.041,2.19389805]
[1772133262477,11.61800545,86.074,86.041,2.19389805]
[1772133262682,11.61800545,86.074,86.045,2.19389805]
[1772133262882,2.04865342,86.084,86.045,2.19389805]
[1772133263081,2.04865342,86.093,86.061,2.19389805]
[1772133263383,11.61426696,86.101,86.071,2.19389805]
[1772133263556,11.61373336,86.105,86.08,5.51989825]
[1772133263754,2.04865342,86.116,86.081,2.19389805]
[1772133264081,0.1,86.12,86.085,2.19389805]
[1772133264269,0.1,86.12,86.091,2.19389805]
[1772133264462,0.1,86.12,86.101,2.19389805]
[1772133264671,11.61055294,86.129,86.102,0.28432314]
[1772133264887,2.04865342,86.138,86.111,2.19389805]
[1772133265369,46.42182825,86.167,86.092,2.19389805]
[1772133265370,2.04865342,86.167,86.092,2.19389805]
[1772133265569,2.04865342,86.159,86.121,2.19389805]
[1772133265978,2.04865342,86.157,86.121,2.19389805]
[1772133266157,2.04865342,86.129,86.082,0.28432314]
[1772133266357,2.04865342,86.129,86.062,11.6195301]
[1772133266358,5.37465362,86.12,86.085,2.19389805]
[1772133266559,2.04865342,86.119,86.085,2.19389805]
[1772133266779,3.3260002,86.11,86.085,2.19389805]
[1772133267976,2.04865342,86.119,86.085,2.19389805]
[1772133269665,11.61197426,86.118,86.085,2.19389805]
[1772133269986,2.04865342,86.117,86.085,2.19389805]
[1772133271287,2.04865342,86.109,86.074,2.19389805]
[1772133271465,2.04865342,86.089,86.059,2.19389805]
[1772133272074,11.61602081,86.088,86.059,2.19389805]
[1772133272283,11.61602081,86.088,86.041,29.05579737]
[1772133272284,2.04865342,86.079,86.042,2.19389805]
[1772133272469,2.04865342,86.087,86.05,3.3260002]
[1772133272668,2.04865342,86.087,86.051,2.19389805]
[1772133272883,3.3260002,86.08,86.051,2.19389805]
[1772133273276,2.04865342,86.079,86.051,2.19389805]
[1772133273468,13.66594402,86.079,86.051,2.19389805]
[1772133274475,11.61615574,86.087,86.051,2.19389805]
[1772133274789,2.04865342,86.086,86.053,2.19389805]
[1772133274991,2.04865342,86.079,86.053,2.19389805]
[1772133275374,2.04865342,86.079,86.045,2.13411041]
[1772133277769,11.61668205,86.084,86.051,2.13411041]
[1772133279877,3.3260002,86.08,86.051,2.13411041]
[1772133281286,2.16882084,86.081,86.053,2.10749397]
[1772133281480,11.61668205,86.084,86.055,2.10749397]
[1772133281991,11.61723533,86.079,86.055,2.10749397]
[1772133282787,2.16882084,86.078,86.054,62.5]
[1772133283093,5.49482104,86.07,86.054,62.5]
[1772133283774,11.62007018,86.058,86.042,30.8]
[1772133283971,13.78889102,86.058,86.034,13.73078217]
[1772133284175,2.16882084,86.058,86.035,2.10749397]
[1772133284385,11.61834592,86.071,86.041,2.10749397]
[1772133284695,5.49482104,86.07,86.041,2.10749397]
[1772133285089,2.16882084,86.07,86.041,2.10749397]
[1772133285289,2.16882084,86.068,86.042,11.622231]
[1772133285596,2.16882084,86.068,86.043,2.10749397]
[1772133286392,11.61858508,86.069,86.043,2.10749397]
[1772133287985,13.78740592,86.069,86.043,2.10749397]
[1772133288198,2.16882084,86.068,86.043,2.10749397]
[1772133288396,2.16882084,86.068,86.036,2.10749397]
[1772133291097,2.16882084,86.066,86.037,2.10749397]
[1772133291796,2.16882084,86.066,86.032,30.8]
[1772133292101,2.16882084,86.049,86.019,2.10749397]
[1772133294094,13.79024144,86.048,86.021,2.10749397]
[1772133297199,2.16882084,86.052,86.023,2.10749397]
[1772133297402,2.16882084,86.055,86.023,2.10749397]
[1772133298188,2.16882084,86.049,86.023,2.10749397]
[1772133300204,11.61831511,86.071,86.03,3.32263646]
[1772133300396,49.76994225,86.12,86.024,40.68632009]
[1772133300397,11.61756428,86.077,86.051,2.10749397]
[1772133300601,2.16882084,86.089,86.053,2.10749397]
[1772133300797,2.16882084,86.096,86.061,2.10749397]
[1772133301392,2.16882084,86.089,86.061,2.10749397]
[1772133302495,3.32263646,86.1,86.061,2.10749397]
[1772133302496,2.16882084,86.087,86.061,2.10749397]
[1772133304605,2.16882084,86.117,86.081,2.10749397]
[1772133304793,2.16882084,86.133,86.101,2.10749397]
[1772133305109,2.16882084,86.14,86.101,2.10749397]
[1772133305305,40.62492745,86.154,86.121,2.10749397]
[1772133305306,2.16882084,86.153,86.121,2.10749397]
[1772133305603,2.16882084,86.153,86.121,1.52655228]
[1772133306503,2.16882084,86.151,86.121,1.52655228]
[1772133307506,2.16882084,86.149,86.121,1.52655228]
[1772133307891,40.62587054,86.152,86.121,1.52655228]
[1772133308287,11.60739158,86.152,86.123,2.10749397]
[1772133308492,2.16882084,86.16,86.125,2.10749397]
[1772133308708,11.60604442,86.162,86.131,2.10749397]
[1772133309207,2.16882084,86.161,86.131,2.10749397]
[1772133310211,11.60604442,86.162,86.131,2.10749397]
[1772133310797,11.60457271,86.173,86.141,2.11125917]
[1772133311118,2.15246551,86.183,86.151,2.11125917]
[1772133311307,2.15246551,86.179,86.151,2.11125917]
[1772133311696,2.15246551,86.211,86.165,2.11125917]
[1772133311897,11.59958241,86.21,86.181,2.11125917]
[1772133312305,2.15246551,86.189,86.145,2.11125917]
[1772133312520,2.15246551,86.179,86.145,2.11125917]
[1772133312902,11.60299523,86.185,86.151,2.11125917]
[1772133313209,22.63125909,86.19,86.151,2.11125917]
[1772133313412,2.15246551,86.189,86.151,2.11125917]
[1772133313717,11.60163521,86.195,86.161,2.11125917]
[1772133314011,11.60101098,86.2,86.171,2.11125917]
[1772133314213,13.75286451,86.204,86.171,2.11125917]
[1772133314593,2.15246551,86.204,86.18,8.8764543]
[1772133314793,0.1,86.22,86.197,2.11125917]
[1772133315000,11.59514395,86.243,86.211,2.11125917]
[1772133315211,11.59514395,86.243,86.196,11.60146642]
[1772133315212,10.59393405,86.252,86.221,2.11125917]
[1772133315418,10.59393405,86.252,86.229,2.11125917]
[1772133316135,2.15246551,86.239,86.204,0.28432314]
[1772133316319,2.15246551,86.239,86.2,8.8764543]
[1772133316513,2.15246551,86.239,86.201,2.11125917]
[1772133317503,11.02891981,86.23,86.201,2.11125917]
[1772133317706,2.15246551,86.23,86.201,11.60074128]
[1772133317899,2.15246551,86.23,86.202,2.11125917]
[1772133318218,11.59581622,86.238,86.202,2.11125917]
[1772133318404,13.74828173,86.238,86.202,2.11125917]
[1772133318915,2.15246551,86.237,86.202,2.11125917]
[1772133319116,2.15246551,86.229,86.202,2.11125917]
[1772133319297,2.15246551,86.229,86.193,2.11125917]
[1772133319494,11.59716101,86.228,86.194,2.11125917]
[1772133319713,11.59716101,86.228,86.201,2.11125917]
[1772133320014,11.59716101,86.228,86.2,8.8764543]
[1772133320015,2.15246551,86.227,86.192,2.11125917]
[1772133320212,40.59006354,86.228,86.192,2.11125917]
[1772133320213,2.15246551,86.219,86.192,2.11125917]
[1772133320419,2.15246551,86.219,86.192,1.58875445]
[1772133321916,2.15246551,86.242,86.193,11.60187022]
[1772133322239,2.15246551,86.246,86.22,8.8764543]
[1772133322413,2.15246551,86.239,86.2,8.8764543]
[1772133322615,2.15246551,86.239,86.2,10.98771347]
[1772133322919,2.15246551,86.239,86.193,11.60187022]
[1772133322920,8.8764543,86.22,86.19,2.11125917]
[1772133323115,2.15246551,86.219,86.19,2.11125917]
[1772133324205,11.59850611,86.218,86.19,2.11125917]
[1772133324722,11.59850611,86.218,86.19,10.98771347]
[1772133325618,11.59850611,86.218,86.191,2.11125917]
[1772133325922,8.8764543,86.21,86.17,8.8764543]
[1772133326123,2.15246551,86.209,86.167,2.11125917]
[1772133326320,2.15246551,86.207,86.171,2.11125917]
[1772133326717,2.15246551,86.199,86.162,2.11125917]
[1772133326918,2.15246551,86.199,86.15,29.01896982]
[1772133326919,2.15246551,86.189,86.153,2.11125917]
[1772133328611,2.15246551,86.187,86.154,13.7183813]
[1772133328809,29.00413873,86.195,86.154,13.7183813]
[1772133328810,11.60202598,86.192,86.161,2.11125917]
[1772133329033,11.60147452,86.196,86.161,2.11125917]
[1772133329210,2.15246551,86.189,86.161,2.11125917]
[1772133330524,11.60146642,86.196,86.163,2.11125917]
[1772133331231,13.75393193,86.196,86.163,2.11125917]
[1772133331528,11.60073862,86.202,86.171,2.11125917]
[1772133332333,2.15246551,86.199,86.171,2.11125917]
[1772133332735,11.60119724,86.198,86.172,11.60469758]
[1772133333033,11.60119724,86.198,86.172,13.71595675]
[1772133333230,11.60119724,86.198,86.173,2.11125917]
[1772133333414,2.15246551,86.202,86.173,2.11125917]
[1772133333615,2.15246551,86.199,86.173,2.11125917]
[1772133334037,2.15246551,86.229,86.191,2.11125917]
[1772133334239,2.15246551,86.219,86.191,2.11125917]
[1772133334625,2.15246551,86.217,86.183,2.11125917]
[1772133334826,2.15246551,86.209,86.171,11.60477732]
[1772133335122,2.15246551,86.209,86.172,2.11125917]
[1772133335524,2.26253564,86.199,86.161,11.60616313]
[1772133335836,2.26253564,86.189,86.16,5.64231114]
[1772133336219,2.26253564,86.189,86.161,2.32965913]
[1772133336537,2.26253564,86.189,86.152,2.4718207]
[1772133337034,2.26253564,86.187,86.154,2.32965913]
[1772133339433,2.26253564,86.185,86.155,13.93664653]
[1772133339634,2.26253564,86.185,86.151,11.60745826]
[1772133340137,2.17964779,86.179,86.148,13.76711109]
[1772133340330,2.17964779,86.179,86.143,11.60847827]
[1772133340637,2.17964779,86.169,86.139,2.15918056]
[1772133340837,2.17964779,86.169,86.132,11.61002962]
[1772133341143,2.17964779,86.169,86.131,13.76931976]
[1772133341317,2.17964779,86.169,86.131,11.6101392]
[1772133341522,2.17964779,86.169,86.132,2.15918056]
[1772133342242,2.17964779,86.167,86.134,2.15918056]
[1772133343442,2.17964779,86.167,86.141,2.15918056]
[1772133344450,2.17964779,86.165,86.141,2.15918056]
[1772133345541,2.17964779,86.163,86.132,2.15918056]
[1772133347447,11.60604442,86.162,86.133,2.15918056]
[1772133347630,2.17964779,86.161,86.133,2.15918056]
[1772133347824,2.17964779,86.159,86.133,2.15918056]
[1772133349031,2.17964779,86.159,86.121,11.61145238]
[1772133349349,2.17964779,86.159,86.121,13.77063294]
[1772133349529,2.17964779,86.157,86.122,2.15918056]
[1772133352461,2.17964779,86.155,86.123,2.15918056]
[1772133352759,2.17964779,86.172,86.141,2.15918056]
[1772133355944,2.17964779,86.169,86.141,2.15918056]
[1772133357059,2.17964779,86.169,86.143,2.15918056]
[1772133357962,2.17964779,86.167,86.13,11.03930193]
[1772133358267,2.17964779,86.167,86.132,2.15918056]
[1772133358440,2.17964779,86.159,86.131,30.8]
[1772133360569,2.17964779,86.157,86.132,2.15918056]
[1772133360870,2.17964779,86.165,86.133,2.15918056]
[1772133361196,2.17964779,86.159,86.131,30.8]
[1772133361746,8.88012137,86.14,86.121,30.8]
[1772133361962,2.17964779,86.139,86.109,2.15918056]
[1772133362158,2.17964779,86.139,86.111,2.15918056]
[1772133362564,2.17964779,86.127,86.093,2.15918056]
[1772133362771,2.17964779,86.127,86.095,2.15918056]
[1772133364347,11.61062604,86.128,86.026,46.49719551]
[1772133364348,2.17964779,86.099,86.069,2.15918056]
[1772133364559,2.17964779,86.111,86.071,2.15918056]
[1772133364750,3.3181811,86.13,86.091,2.15918056]
[1772133365460,5.49782889,86.13,86.091,2.15918056]
[1772133365644,2.17964779,86.129,86.091,2.15918056]